Workbook

Sheet Sheet1
B1: Derivative of y = sin (4x)
B3: This DIGMath unit explores
C4: the derivative function of
D5: y = sin (4x)
B6: on any interval from x = a to x = b.
A8: The function in terms of x: f'(x) = | F8: sin(4*x)
A11: Now enter the interval for x:
C12: xMin = | D12: -3.14
C13: xMax = | D13: 3.14
A16: Click each item below for suggestions and investigations
C17: Item 1 | I17: Trace along all the curves: | M17: 170 | P17: x = | Q17: =M17/50-3.14 -> 0.26 | R17: y = | S17: =Sheet2!M4 -> 0.84
C18: Item 2
C19: Item 3
C20: Item 4
A25: To access/download all the DIGMath Apps for Calculus | R25: y' = | S25: =Sheet2!M10 -> 2.14
A26: Click this link: | C26: DIGMath for Calculus
A28: Created by: Sheldon P. Gordon
A29: Farmingdale State College
A30: Development of this module was supported by the
A31: NSF's Division of Undergraduate Education
A32: under grants DUE-0310123 and DUE-0442160.
R62: Error = | S62: =Sheet2!M16 -> 0.000068

Sheet Sheet2
C1: x | D1: y = f(x) | E1: x+.00001 | F1: f(x+0.00001) | G1: AppDeriv | I1: Actual | J1: Diff | L1: verticals
D2: =Sheet1!#REF! ->  | I2: Deriv
C3: =Sheet1!D12 -> -3.14 | D3: =SIN(4*x) -> 0.006370571268 | E3: =x+0.00001 -> -3.13999 | F3: =SIN(4*(x+0.00001)) -> 0.006410570451 | G3: =(F3-D3)/dxx -> 3.99991832 | I3: =4*COS(4*x) -> 3.999918831 | J3: =I3-G3 -> 5.106861387e-07 | L3: =x0 -> 0.26 | M3: 0
C4: =C3+Sheet2!B$12 -> -3.1086 | D4: 0.1315878758 | E4: -3.10859 | F4: 0.1316275278 | G4: 3.965207511 | I4: 3.965218039 | J4: =I4-G4 -> 1.052806038e-05 | L4: =L3 -> 0.26 | M4: =LOOKUP(x0,C3:C203,D3:D203) -> 0.8440547322
C5: =C4+Sheet2!B$12 -> -3.0772 | D5: 0.2547320616 | E5: -3.07719 | F5: 0.2547707419 | G5: 3.868026315 | I5: 3.868046694 | J5: 2.037957083e-05
C6: =C5+Sheet2!B$12 -> -3.0458 | D6: 0.3738630375 | E6: -3.04579 | F6: 0.3739001366 | G6: 3.709905786 | I6: 3.709935696 | J6: 2.991000501e-05 | L6: =L4 -> 0.26 | M6: =M4 -> 0.8440547322
C7: =C6+Sheet2!B$12 -> -3.0144 | D7: 0.4871039387 | E7: -3.01439 | F7: 0.487138872 | G7: 3.493337055 | I7: 3.493376024 | J7: 3.896922287e-05
C8: =C7+Sheet2!B$12 -> -2.983 | D8: 0.5926706963 | E8: -2.98299 | F8: 0.5927029137 | G8: 3.221732083 | I8: 3.221779498 | J8: 4.741448999e-05 | L8: Derivative
C9: =C8+Sheet2!B$12 -> -2.9516 | D9: 0.688900145 | E9: -2.95159 | F9: 0.6889291387 | G9: 2.899369907 | I9: 2.899425019 | J9: 5.511276498e-05 | L9: =x0 -> 0.26 | M9: 0
C10: =C9+Sheet2!B$12 -> -2.9202 | D10: 0.7742762252 | E10: -2.92019 | F10: 0.7743015385 | G10: 2.531329223 | I10: 2.531391166 | J10: 6.194275591e-05 | L10: =L9 -> 0.26 | M10: =LOOKUP(x0,C3:C203,G3:G203) -> 2.144960621
C11: =C10+Sheet2!B$12 -> -2.8888 | D11: 0.8474538681 | E11: -2.88879 | F11: 0.8474751021 | G11: 2.123408378 | I11: 2.123476175 | J11: 6.779685808e-05
A12: delta x = | B12: =(xMax-xMin)/200 -> 0.0314 | C12: =C11+Sheet2!B$12 -> -2.8574 | D12: 0.9072801867 | E12: -2.85739 | F12: 0.9072970071 | G12: 1.682034014 | I12: 1.682106597 | J12: 7.258285477e-05 | L12: =L9 -> 0.26 | M12: =M10 -> 2.144960621
C13: =C12+Sheet2!B$12 -> -2.826 | D13: 0.9528126396 | E13: -2.82599 | F13: 0.9528247812 | G13: 1.214159823 | I13: 1.214236049 | J13: 7.622532613e-05
C14: =C13+Sheet2!B$12 -> -2.7946 | D14: 0.9833338795 | E14: -2.79459 | F14: 0.9833411511 | G14: 0.7271569905 | I14: 0.7272356574 | J14: 7.866690516e-05 | L14: Error
A15: dxx = | B15: =0.00001 -> 1e-05 | C15: =C14+Sheet2!B$12 -> -2.7632 | D15: 0.9983630557 | E15: -2.76319 | F15: 0.9983653427 | G15: 0.2286980666 | I15: 0.2287779357 | J15: 7.986909638e-05 | L15: =x0 -> 0.26 | M15: 0
C16: =C15+Sheet2!B$12 -> -2.7318 | D16: 0.9976633889 | E16: -2.73179 | F16: 0.9976606553 | G16: -0.2733639112 | I16: -0.2732840982 | J16: 7.981299706e-05 | L16: =L15 -> 0.26 | M16: =LOOKUP(x0,C3:C203,J3:J209) -> 6.752494572e-05
C17: =C16+Sheet2!B$12 -> -2.7004 | D17: 0.9812459022 | E17: -2.70039 | F17: 0.981238191 | G17: -0.7711191411 | I17: -0.7710406417 | J17: 7.849947107e-05
C18: =C17+Sheet2!B$12 -> -2.669 | D18: 0.949369247 | E18: -2.66899 | F18: 0.9493566797 | G18: -1.256725672 | I18: -1.256649723 | J18: 7.594921997e-05 | L18: =L15 -> 0.26 | M18: =M16 -> 6.752494572e-05
C19: =C18+Sheet2!B$12 -> -2.6376 | D19: 0.9025356282 | E19: -2.63759 | F19: 0.9025184029 | G19: -1.722532953 | I19: -1.72246075 | J19: 7.220240158e-05
C20: =C19+Sheet2!B$12 -> -2.6062 | D20: 0.8414828925 | E20: -2.60619 | F20: 0.8414612804 | G20: -2.16120236 | I20: -2.161135041 | J20: 6.731806323e-05
C21: =C20+Sheet2!B$12 -> -2.5748 | D21: 0.767172903 | E21: -2.57479 | F21: 0.7671472448 | G21: -2.565822818 | I21: -2.565761444 | J21: 6.137316143e-05
C22: =C21+Sheet2!B$12 -> -2.5434 | D22: 0.6807763865 | E22: -2.54339 | F22: 0.6807470863 | G22: -2.93001968 | I22: -2.929965219 | J22: 5.446134781e-05
C23: =C22+Sheet2!B$12 -> -2.512 | D23: 0.5836544883 | E23: -2.51199 | F23: 0.5836220077 | G23: -3.24805516 | I23: -3.248008469 | J23: 4.669151071e-05
C24: =C23+Sheet2!B$12 -> -2.4806 | D24: 0.4773373282 | E24: -2.48059 | F24: 0.477302179 | G24: -3.514918725 | I24: -3.514880539 | J24: 3.818606935e-05
C25: =C24+Sheet2!B$12 -> -2.4492 | D25: 0.3634998939 | E25: -2.44919 | F25: 0.3634626298 | G25: -3.726406037 | I25: -3.726376958 | J25: 2.907902064e-05
C26: =C25+Sheet2!B$12 -> -2.4178 | D26: 0.2439356524 | E26: -2.41779 | F26: 0.2438968606 | G26: -3.879185192 | I26: -3.879165678 | J26: 1.951384256e-05
C27: =C26+Sheet2!B$12 -> -2.3864 | D27: 0.1205282944 | E27: -2.38639 | F27: 0.1204885859 | G27: -3.97084921 | I27: -3.970839569 | J27: 9.641230982e-06
C28: =C27+Sheet2!B$12 -> -2.355 | D28: -0.00477794259 | E28: -2.35499 | F28: -0.00481794213 | G28: -3.999953959 | I28: -3.999954342 | J28: -3.832758266e-07
C29: =C28+Sheet2!B$12 -> -2.3236 | D29: -0.1300089048 | E29: -2.32359 | F29: -0.1300485653 | G29: -3.966040903 | I29: -3.966051305 | J29: -1.040174332e-05
C30: =C29+Sheet2!B$12 -> -2.2922 | D30: -0.2531916246 | E30: -2.29219 | F30: -0.253230321 | G30: -3.869644331 | I30: -3.869664587 | J30: -2.025633427e-05
C31: =C30+Sheet2!B$12 -> -2.2608 | D31: -0.3723854034 | E31: -2.26079 | F31: -0.3724225262 | G31: -3.712282935 | I31: -3.712312727 | J31: -2.979179653e-05
C32: =C31+Sheet2!B$12 -> -2.2294 | D32: -0.485712387 | E32: -2.22939 | F32: -0.4857473514 | G32: -3.496435886 | I32: -3.496474744 | J32: -3.885790143e-05
C33: =C32+Sheet2!B$12 -> -2.198 | D33: -0.5913871505 | E33: -2.19799 | F33: -0.5914194056 | G33: -3.225503775 | I33: -3.225551086 | J33: -4.731181096e-05
C34: =C33+Sheet2!B$12 -> -2.1666 | D34: -0.6877448269 | E34: -2.16659 | F34: -0.6877738645 | G34: -2.903755037 | I34: -2.903810057 | J34: -5.502033488e-05
C35: =C34+Sheet2!B$12 -> -2.1352 | D35: -0.7732673363 | E35: -2.13519 | F35: -0.7732926989 | G35: -2.536258706 | I35: -2.536320568 | J35: -6.186203806e-05
C36: =C35+Sheet2!B$12 -> -2.1038 | D36: -0.8466073031 | E36: -2.10379 | F36: -0.8466285912 | G36: -2.128804552 | I36: -2.128872281 | J36: -6.772913561e-05
C37: =C36+Sheet2!B$12 -> -2.0724 | D37: -0.9066092831 | E37: -2.07239 | F37: -0.9066261612 | G37: -1.687811864 | I37: -1.687884394 | J37: -7.252918428e-05
C38: =C37+Sheet2!B$12 -> -2.041 | D38: -0.952327967 | E38: -2.04099 | F38: -0.9523401693 | G38: -1.220228321 | I38: -1.220304508 | J38: -7.618654601e-05
C39: =C38+Sheet2!B$12 -> -2.0096 | D39: -0.9830430739 | E39: -2.00959 | F39: -0.9830504081 | G39: -0.7334205297 | I39: -0.7334991733 | J39: -7.864363611e-05
C40: =C39+Sheet2!B$12 -> -1.9782 | D40: -0.9982706986 | E40: -1.97819 | F40: -0.9982730491 | G40: -0.2350579672 | I40: -0.2351378289 | J40: -7.986172251e-05
C41: =C40+Sheet2!B$12 -> -1.9468 | D41: -0.9977709353 | E41: -1.94679 | F41: -0.9977682652 | G41: 0.2670078472 | I41: 0.2669280256 | J41: -7.982161144e-05
C42: =C41+Sheet2!B$12 -> -1.9154 | D42: -0.9815516577 | E42: -1.91539 | F42: -0.9815440091 | G42: 0.7648670511 | I42: 0.7647885272 | J42: -7.85239399e-05
C43: =C42+Sheet2!B$12 -> -1.884 | D43: -0.9498683946 | E43: -1.88399 | F43: -0.9498558879 | G43: 1.250676056 | I43: 1.250600067 | J43: -7.598914207e-05
C44: =C43+Sheet2!B$12 -> -1.8526 | D44: -0.9032203041 | E44: -1.85259 | F44: -0.9032031363 | G44: 1.716781119 | I44: 1.716708862 | J44: -7.22571773e-05
C45: =C44+Sheet2!B$12 -> -1.8212 | D45: -0.8423423097 | E45: -1.82119 | F45: -0.8423207513 | G45: 2.155838927 | I45: 2.15577154 | J45: -6.738682699e-05
C46: =C45+Sheet2!B$12 -> -1.7898 | D46: -0.7681935219 | E46: -1.78979 | F46: -0.7681679126 | G46: 2.560932285 | I46: 2.56087083 | J46: -6.145481329e-05
C47: =C46+Sheet2!B$12 -> -1.7584 | D47: -0.6819421275 | E47: -1.75839 | F47: -0.6819128707 | G47: 2.925679096 | I47: 2.925624541 | J47: -5.455460688e-05
C48: =C47+Sheet2!B$12 -> -1.727 | D48: -0.5849469856 | E48: -1.72699 | F48: -0.5849145423 | G48: 3.244332908 | I48: 3.244286113 | J48: -4.67949225e-05
C49: =C48+Sheet2!B$12 -> -1.6956 | D49: -0.478736219 | E49: -1.69559 | F49: -0.4787011002 | G49: 3.511873448 | I49: 3.51183515 | J49: -3.82979883e-05
C50: =C49+Sheet2!B$12 -> -1.6642 | D50: -0.3649831392 | E50: -1.66419 | F50: -0.3649458983 | G50: 3.724085713 | I50: 3.724056515 | J50: -2.919768583e-05
C51: =C50+Sheet2!B$12 -> -1.6328 | D51: -0.2454798842 | E51: -1.63279 | F51: -0.2454411079 | G51: 3.877626377 | I51: 3.877606739 | J51: -1.963738184e-05
C52: =C51+Sheet2!B$12 -> -1.6014 | D52: -0.1221091838 | E52: -1.60139 | F52: -0.1220694831 | G52: 3.970076462 | I52: 3.970066694 | J52: -9.767702914e-06
C53: =C52+Sheet2!B$12 -> -1.57 | D53: 0.003185301793 | E53: -1.56999 | F53: 0.003225301588 | G53: 3.999979452 | I53: 3.999979708 | J53: 2.558646264e-07
C54: =C53+Sheet2!B$12 -> -1.5386 | D54: 0.1284296042 | E54: -1.53859 | F54: 0.1284692728 | G54: 3.966864236 | I54: 3.966874511 | J54: 1.027540066e-05
C55: =C54+Sheet2!B$12 -> -1.5072 | D55: 0.2516505453 | E55: -1.50719 | F55: 0.2516892579 | G55: 3.871252532 | I55: 3.871272665 | J55: 2.013305139e-05
C56: =C55+Sheet2!B$12 -> -1.4758 | D56: 0.3709068247 | E56: -1.47579 | F56: 0.3709439712 | G56: 3.714650668 | I56: 3.714680341 | J56: 2.967351329e-05
C57: =C56+Sheet2!B$12 -> -1.4444 | D57: 0.4843196033 | E57: -1.44439 | F57: 0.4843545986 | G57: 3.499525848 | I57: 3.499564594 | J57: 3.874647593e-05
C58: =C57+Sheet2!B$12 -> -1.413 | D58: 0.5901021047 | E58: -1.41299 | F58: 0.5901343973 | G58: 3.229267284 | I58: 3.229314493 | J58: 4.720900985e-05
C59: =C58+Sheet2!B$12 -> -1.3816 | D59: 0.6865877643 | E59: -1.38159 | F59: 0.6866168456 | G59: 2.908132802 | I59: 2.90818773 | J59: 5.492777943e-05
C60: =C59+Sheet2!B$12 -> -1.3502 | D60: 0.772256486 | E60: -1.35019 | F60: 0.7722818978 | G60: 2.541181756 | I60: 2.541243537 | J60: 6.1781183e-05
C61: =C60+Sheet2!B$12 -> -1.3188 | D61: 0.8457585907 | E61: -1.31879 | F61: 0.8457799327 | G61: 2.134195326 | I61: 2.134262987 | J61: 6.766124689e-05
C62: =C61+Sheet2!B$12 -> -1.2874 | D62: 0.9059360797 | E62: -1.28739 | F62: 0.9059530156 | G62: 1.693585433 | I62: 1.693657909 | J62: 7.247532793e-05
C63: =C62+Sheet2!B$12 -> -1.256 | D63: 0.9518408788 | E63: -1.25599 | F63: 0.9518531418 | G63: 1.226293724 | I63: 1.226369872 | J63: 7.614758836e-05
C64: =C63+Sheet2!B$12 -> -1.2246 | D64: 0.9827497747 | E64: -1.22459 | F64: 0.9827571716 | G64: 0.7396822085 | I64: 0.7397608287 | J64: 7.862016978e-05
C65: =C64+Sheet2!B$12 -> -1.1932 | D65: 0.9981758092 | E65: -1.19319 | F65: 0.9981782234 | G65: 0.2414172715 | I65: 0.2414971256 | J65: 7.985412293e-05
C66: =C65+Sheet2!B$12 -> -1.1618 | D66: 0.9978759508 | E66: -1.16179 | F66: 0.9978733443 | G66: -0.2606511059 | I66: -0.2605712759 | J66: 7.98300092e-05
C67: =C66+Sheet2!B$12 -> -1.1304 | D67: =SIN(4*x) -> 0.9818549235 | E67: -1.13039 | F67: 0.9818473374 | G67: =(F67-D67)/dxx -> -0.758613021 | I67: -0.7585344728 | J67: 7.854819225e-05
C68: =C67+Sheet2!B$12 -> -1.099 | D68: 0.9503651329 | E68: -1.09899 | F68: 0.9503526866 | G68: -1.244623267 | I68: -1.244547238 | J68: =I68-G68 -> 7.602888284e-05
C69: =C68+Sheet2!B$12 -> -1.0676 | D69: 0.9039026889 | E69: -1.06759 | F69: 0.9038855787 | G69: -1.71102493 | I69: -1.710952619 | J69: 7.231176777e-05
C70: =C69+Sheet2!B$12 -> -1.0362 | D70: 0.8431995904 | E70: -1.03619 | F70: 0.8431780857 | G70: -2.150470025 | I70: -2.15040257 | J70: 6.745540969e-05
C71: =C70+Sheet2!B$12 -> -1.0048 | D71: 0.7692121922 | E71: -1.00479 | F71: 0.7691866319 | G71: -2.556035256 | I71: -2.555973719 | J71: 6.153631412e-05
C72: =C71+Sheet2!B$12 -> -0.9734 | D72: 0.6831061388 | E72: -0.97339 | F72: 0.6830769254 | G72: -2.92133109 | I72: -2.921276442 | J72: 5.464770253e-05
C73: =C72+Sheet2!B$12 -> -0.942 | D73: 0.5862379992 | E73: -0.94199 | F73: 0.5862055931 | G73: -3.240602427 | I73: -3.240555528 | J73: 4.68981613e-05
C74: =C73+Sheet2!B$12 -> -0.9106 | D74: 0.4801338954 | E74: -0.91059 | F74: 0.4800988072 | G74: -3.508819264 | I74: -3.508780854 | J74: 3.840976058e-05
C75: =C74+Sheet2!B$12 -> -0.8792 | D75: 0.3664654586 | E75: -0.87919 | F75: 0.3664282411 | G75: -3.721755943 | I75: -3.721726626 | J75: 2.931622729e-05
C76: =C75+Sheet2!B$12 -> -0.8478 | D76: 0.2470234933 | E76: -0.84779 | F76: 0.2469847327 | G76: -3.876057725 | I76: -3.876037964 | J76: 1.97608293e-05
C77: =C76+Sheet2!B$12 -> -0.8164 | D77: 0.1236897635 | E77: -0.81639 | F77: 0.1236500706 | G77: -3.969293643 | I77: -3.969283749 | J77: 9.894105003e-06
C78: =C77+Sheet2!B$12 -> -0.785 | D78: -0.001592652917 | E78: -0.78499 | F78: -0.001632652864 | G78: -3.999994798 | I78: -3.999994927 | J78: -1.284970956e-07
C79: =C78+Sheet2!B$12 -> -0.7536 | D79: -0.1268499777 | E79: -0.75359 | F79: -0.1268896545 | G79: -3.967677506 | I79: -3.967687655 | J79: -1.014907592e-05
C80: =C79+Sheet2!B$12 -> -0.7222 | D80: -0.2501088277 | E80: -0.72219 | F80: -0.2501475563 | G80: -3.872850914 | I80: -3.872870923 | J80: -2.000975658e-05
C81: =C80+Sheet2!B$12 -> -0.6908 | D81: -0.3694273051 | E81: -0.69079 | F81: -0.3694644752 | G81: -3.717008978 | I81: -3.717038533 | J81: -2.955519491e-05
C82: =C81+Sheet2!B$12 -> -0.6594 | D82: -0.4829255911 | E82: -0.65939 | F82: -0.4829606172 | G82: -3.502606933 | I82: -3.502645568 | J82: -3.863499698e-05
C83: =C82+Sheet2!B$12 -> -0.628 | D83: -0.588815562 | E83: -0.62799 | F83: -0.5888478922 | G83: -3.233022603 | I83: -3.233069709 | J83: -4.710612186e-05
C84: =C83+Sheet2!B$12 -> -0.5966 | D84: -0.6854289601 | E84: -0.59659 | F84: -0.6854580851 | G84: -2.91250319 | I84: -2.912558025 | J84: -5.483510782e-05
C85: =C84+Sheet2!B$12 -> -0.5652 | D85: -0.7712436769 | E85: -0.56519 | F85: -0.7712691378 | G85: -2.54609836 | I85: -2.546160061 | J85: -6.170018233e-05
C86: =C85+Sheet2!B$12 -> -0.5338 | D86: -0.844907733 | E86: -0.53379 | F86: -0.8449291288 | G86: -2.139580687 | I86: -2.13964828 | J86: -6.759319613e-05
C87: =C86+Sheet2!B$12 -> -0.5024 | D87: -0.9052605785 | E87: -0.50239 | F87: -0.905277572 | G87: -1.699354706 | I87: -1.699427127 | J87: -7.2421307e-05
C88: =C87+Sheet2!B$12 -> -0.471 | D88: -0.9513513762 | E88: -0.47099 | F88: -0.9513636998 | G88: -1.232356017 | I88: -1.232432125 | J88: -7.610844472e-05
C89: =C88+Sheet2!B$12 -> -0.4396 | D89: -0.9824539828 | E89: -0.43959 | F89: -0.9824614422 | G89: -0.7459420111 | I89: -0.7460206077 | J89: -7.859652161e-05
C90: =C89+Sheet2!B$12 -> -0.4082 | D90: -0.998078388 | E90: -0.40819 | F90: -0.9980808658 | G90: -0.2477759634 | I90: -0.2478558098 | J90: -7.984634301e-05
C91: =C90+Sheet2!B$12 -> -0.3768 | D91: -0.9979784351 | E91: -0.37679 | F91: -0.9979758922 | G91: 0.2542937035 | I91: 0.2542138653 | J91: -7.983820883e-05
C92: =C91+Sheet2!B$12 -> -0.3454 | D92: -0.9821556988 | E92: -0.34539 | F92: -0.9821481752 | G92: 0.7523570666 | I92: 0.7522784943 | J92: -7.857225175e-05
C93: =C92+Sheet2!B$12 -> -0.314 | D93: -0.9508594605 | E93: -0.31399 | F93: -0.9508470748 | G93: 1.238567321 | I93: 1.238491252 | J93: -7.606842123e-05
C94: =C93+Sheet2!B$12 -> -0.2826 | D94: -0.9045827809 | E94: -0.28259 | F94: -0.9045657283 | G94: 1.705264402 | I94: 1.705192036 | J94: -7.236617151e-05
C95: =C94+Sheet2!B$12 -> -0.2512 | D95: -0.8440547322 | E95: -0.25119 | F95: -0.8440332812 | G95: 2.145095669 | I95: 2.145028146 | J95: -6.752381518e-05
C96: =C95+Sheet2!B$12 -> -0.2198 | D96: -0.7702289114 | E96: -0.21979 | F96: -0.7702034001 | G96: 2.551131743 | I96: 2.551070125 | J96: -6.161763231e-05
C97: =C96+Sheet2!B$12 -> -0.1884 | D97: -0.6842684172 | E97: -0.18839 | F97: -0.6842392475 | G97: 2.916975674 | I97: 2.916920933 | J97: -5.474069679e-05
C98: =C97+Sheet2!B$12 -> -0.157 | D98: -0.5875275257 | E98: -0.15699 | F98: -0.5874951571 | G98: 3.236863725 | I98: 3.236816724 | J98: -4.700134556e-05
C99: =C98+Sheet2!B$12 -> -0.1256 | D99: -0.481530354 | E99: -0.12559 | F99: -0.4814952964 | G99: 3.505756179 | I99: 3.505717657 | J99: -3.852149369e-05
C100: =C99+Sheet2!B$12 -> -0.0942 | D100: -0.3679468485 | E100: -0.09419 | F100: -0.3679096544 | G100: 3.719416732 | I100: 3.719387297 | J100: -2.943475814e-05
C101: =C100+Sheet2!B$12 -> -0.0628 | D101: -0.2485664758 | E101: -0.06279 | F101: -0.248527731 | G101: 3.874479242 | I101: 3.874459358 | J101: -1.988428576e-05
C102: =C101+Sheet2!B$12 -> -0.0314 | D102: -0.1252700295 | E102: -0.03139 | F102: -0.1252303445 | G102: 3.968500756 | I102: 3.968490735 | J102: -1.002054543e-05
C103: =C102+Sheet2!B$12 -> 5.981326545e-15 | D103: 2.392530618e-14 | E103: 1.000000001e-05 | F103: 4.000000001e-05 | G103: 3.999999999 | I103: 4 | J103: 1.066666755e-09
C104: =C103+Sheet2!B$12 -> 0.0314 | D104: 0.1252700295 | E104: 0.03141 | F104: 0.1253097143 | G104: 3.968480713 | I104: 3.968490735 | J104: 1.002266053e-05
C105: =C104+Sheet2!B$12 -> 0.0628 | D105: 0.2485664758 | E105: 0.06281 | F105: 0.2486052201 | G105: 3.874439471 | I105: 3.874459358 | J105: 1.988635098e-05
C106: =C105+Sheet2!B$12 -> 0.0942 | D106: 0.3679468485 | E106: 0.09421 | F106: 0.3679840421 | G106: 3.71935786 | I106: 3.719387297 | J106: 2.943673835e-05
C107: =C106+Sheet2!B$12 -> 0.1256 | D107: 0.481530354 | E107: 0.12561 | F107: 0.4815654108 | G107: 3.505679134 | I107: 3.505717657 | J107: 3.852336005e-05
C108: =C107+Sheet2!B$12 -> 0.157 | D108: 0.5875275257 | E108: 0.15701 | F108: 0.5875598934 | G108: 3.236769721 | I108: 3.236816724 | J108: 4.700306969e-05
C109: =C108+Sheet2!B$12 -> 0.1884 | D109: 0.6842684172 | E109: 0.18841 | F109: 0.6842975859 | G109: 2.916866191 | I109: 2.916920933 | J109: 5.474224801e-05
C110: =C109+Sheet2!B$12 -> 0.2198 | D110: 0.7702289114 | E110: 0.21981 | F110: 0.7702544215 | G110: 2.551008506 | I110: 2.551070125 | J110: 6.161898845e-05
C111: =C110+Sheet2!B$12 -> 0.2512 | D111: 0.8440547322 | E111: 0.25121 | F111: 0.8440761818 | G111: 2.144960621 | I111: 2.145028146 | J111: 6.752494572e-05
C112: =C111+Sheet2!B$12 -> 0.2826 | D112: 0.9045827809 | E112: 0.28261 | F112: 0.9045998321 | G112: 1.705119669 | I112: 1.705192036 | J112: 7.236707593e-05
C113: =C112+Sheet2!B$12 -> 0.314 | D113: 0.9508594605 | E113: 0.31401 | F113: 0.9508718447 | G113: 1.238415183 | I113: 1.238491252 | J113: 7.606908118e-05
C114: =C113+Sheet2!B$12 -> 0.3454 | D114: 0.9821556988 | E114: 0.34541 | F114: 0.9821632208 | G114: 0.7521999217 | I114: 0.7522784943 | J114: 7.857265626e-05
C115: =C114+Sheet2!B$12 -> 0.3768 | D115: 0.9979784351 | E115: 0.37681 | F115: 0.9979809764 | G115: 0.2541340269 | I115: 0.2542138653 | J115: 7.983834074e-05
C116: =C115+Sheet2!B$12 -> 0.4082 | D116: 0.998078388 | E116: 0.40821 | F116: 0.9980759086 | G116: -0.247935656 | I116: -0.2478558098 | J116: 7.984620488e-05
C117: =C116+Sheet2!B$12 -> 0.4396 | D117: 0.9824539828 | E117: 0.43961 | F117: 0.9824465218 | G117: -0.7460992038 | I117: -0.7460206077 | J117: 7.859612599e-05
C118: =C117+Sheet2!B$12 -> 0.471 | D118: 0.9513513762 | E118: 0.47101 | F118: 0.9513390512 | G118: -1.232508233 | I118: -1.232432125 | J118: 7.610778361e-05
C119: =C118+Sheet2!B$12 -> 0.5024 | D119: 0.9052605785 | E119: 0.50241 | F119: 0.9052435835 | G119: -1.699499548 | I119: -1.699427127 | J119: 7.242038702e-05
C120: =C119+Sheet2!B$12 -> 0.5338 | D120: 0.844907733 | E120: 0.53381 | F120: 0.8448863359 | G120: -2.139715872 | I120: -2.13964828 | J120: 6.759203338e-05
C121: =C120+Sheet2!B$12 -> 0.5652 | D121: 0.7712436769 | E121: 0.56521 | F121: 0.7712182146 | G121: -2.546221759 | I121: -2.546160061 | J121: 6.169879745e-05
C122: =C121+Sheet2!B$12 -> 0.5966 | D122: 0.6854289601 | E122: 0.59661 | F122: 0.6853998339 | G122: -2.912612859 | I122: -2.912558025 | J122: 5.483353288e-05
C123: =C122+Sheet2!B$12 -> 0.628 | D123: 0.588815562 | E123: 0.62801 | F123: 0.5887832308 | G123: -3.233116813 | I123: -3.233069709 | J123: 4.710437299e-05
C124: =C123+Sheet2!B$12 -> 0.6594 | D124: 0.4829255911 | E124: 0.65941 | F124: 0.4828905643 | G124: -3.502684201 | I124: -3.502645568 | J124: 3.863309485e-05
C125: =C124+Sheet2!B$12 -> 0.6908 | D125: 0.3694273051 | E125: 0.69081 | F125: 0.3693901345 | G125: -3.717068087 | I125: -3.717038533 | J125: 2.955317322e-05
C126: =C125+Sheet2!B$12 -> 0.7222 | D126: 0.2501088277 | E126: 0.72221 | F126: 0.2500700988 | G126: -3.872890931 | I126: -3.872870923 | J126: 2.000765498e-05
C127: =C126+Sheet2!B$12 -> 0.7536 | D127: 0.1268499777 | E127: 0.75361 | F127: 0.1268103007 | G127: -3.967697802 | I127: -3.967687655 | J127: 1.014692227e-05
C128: =C127+Sheet2!B$12 -> 0.785 | D128: 0.001592652916 | E128: 0.78501 | F128: 0.001552652966 | G128: -3.999995053 | I128: -3.999994927 | J128: 1.263273641e-07
C129: =C128+Sheet2!B$12 -> 0.8164 | D129: -0.1236897635 | E129: 0.81641 | F129: -0.1237294563 | G129: -3.969273853 | I129: -3.969283749 | J129: -9.896257377e-06
C130: =C129+Sheet2!B$12 -> 0.8478 | D130: -0.2470234933 | E130: 0.84781 | F130: -0.2470622534 | G130: -3.876018201 | I130: -3.876037964 | J130: -1.976292992e-05
C131: =C130+Sheet2!B$12 -> 0.8792 | D131: =SIN(4*x) -> -0.3664654586 | E131: 0.87921 | F131: -0.3665026756 | G131: =(F131-D131)/dxx -> -3.721697308 | I131: -3.721726626 | J131: -2.931824214e-05
C132: =C131+Sheet2!B$12 -> 0.9106 | D132: -0.4801338954 | E132: 0.91061 | F132: -0.4801689828 | G132: -3.508742442 | I132: -3.508780854 | J132: =I132-G132 -> -3.841166077e-05
C133: =C132+Sheet2!B$12 -> 0.942 | D133: -0.5862379992 | E133: 0.94201 | F133: -0.5862704043 | G133: -3.240508629 | I133: -3.240555528 | J133: -4.6899919e-05
C134: =C133+Sheet2!B$12 -> 0.9734 | D134: -0.6831061388 | E134: 0.97341 | F134: -0.683135351 | G134: -2.921221793 | I134: -2.921276442 | J134: -5.464929101e-05
C135: =C134+Sheet2!B$12 -> 1.0048 | D135: -0.7692121922 | E135: 1.00481 | F135: -0.7692377513 | G135: -2.555912182 | I135: -2.555973719 | J135: -6.153764787e-05
C136: =C135+Sheet2!B$12 -> 1.0362 | D136: -0.8431995904 | E136: 1.03621 | F136: -0.8432210937 | G136: -2.150335113 | I136: -2.15040257 | J136: -6.745652732e-05
C137: =C136+Sheet2!B$12 -> 1.0676 | D137: -0.9039026889 | E137: 1.06761 | F137: -0.9039197977 | G137: -1.710880306 | I137: -1.710952619 | J137: -7.231266671e-05
C138: =C137+Sheet2!B$12 -> 1.099 | D138: -0.9503651329 | E138: 1.09901 | F138: -0.9503775776 | G138: -1.244471208 | I138: -1.244547238 | J138: -7.602953838e-05
C139: =C138+Sheet2!B$12 -> 1.1304 | D139: -0.9818549235 | E139: 1.13041 | F139: -0.9818625081 | G139: -0.7584559242 | I139: -0.7585344728 | J139: -7.854858759e-05
C140: =C139+Sheet2!B$12 -> 1.1618 | D140: -0.9978759508 | E140: 1.16181 | F140: -0.9978785557 | G140: -0.2604914458 | I140: -0.2605712759 | J140: -7.983014237e-05
C141: =C140+Sheet2!B$12 -> 1.1932 | D141: -0.9981758092 | E141: 1.19321 | F141: -0.9981733935 | G141: 0.2415769796 | I141: 0.2414971256 | J141: -7.985400138e-05
C142: =C141+Sheet2!B$12 -> 1.2246 | D142: -0.9827497747 | E142: 1.22461 | F142: -0.9827423764 | G142: 0.7398394485 | I142: 0.7397608287 | J142: -7.861978442e-05
C143: =C142+Sheet2!B$12 -> 1.256 | D143: -0.9518408788 | E143: 1.25601 | F143: -0.9518286144 | G143: 1.226446019 | I143: 1.226369872 | J143: -7.61469551e-05
C144: =C143+Sheet2!B$12 -> 1.2874 | D144: -0.9059360797 | E144: 1.28741 | F144: -0.9059191424 | G144: 1.693730383 | I144: 1.693657909 | J144: -7.24744352e-05
C145: =C144+Sheet2!B$12 -> 1.3188 | D145: -0.8457585907 | E145: 1.31881 | F145: -0.8457372474 | G145: 2.134330648 | I145: 2.134262987 | J145: -6.766012927e-05
C146: =C145+Sheet2!B$12 -> 1.3502 | D146: -0.772256486 | E146: 1.35021 | F146: -0.772231073 | G146: 2.541305317 | I146: 2.541243537 | J146: -6.177986713e-05
C147: =C146+Sheet2!B$12 -> 1.3816 | D147: -0.6865877643 | E147: 1.38161 | F147: -0.6865586818 | G147: 2.908242656 | I147: 2.90818773 | J147: -5.492625741e-05
C148: =C147+Sheet2!B$12 -> 1.413 | D148: -0.5901021047 | E148: 1.41301 | F148: -0.590069811 | G148: 3.229361701 | I148: 3.229314493 | J148: -4.720732034e-05
C149: =C148+Sheet2!B$12 -> 1.4444 | D149: -0.4843196033 | E149: 1.44441 | F149: -0.4842846073 | G149: 3.499603339 | I149: 3.499564594 | J149: -3.874465416e-05
C150: =C149+Sheet2!B$12 -> 1.4758 | D150: -0.3709068247 | E150: 1.47581 | F150: -0.3708696776 | G150: 3.714710013 | I150: 3.714680341 | J150: -2.967157659e-05
C151: =C150+Sheet2!B$12 -> 1.5072 | D151: -0.2516505453 | E151: 1.50721 | F151: -0.2516118324 | G151: 3.871292796 | I151: 3.871272665 | J151: -2.013104063e-05
C152: =C151+Sheet2!B$12 -> 1.5386 | D152: -0.1284296042 | E152: 1.53861 | F152: -0.1283899353 | G152: 3.966884785 | I152: 3.966874511 | J152: -1.027333703e-05
C153: =C152+Sheet2!B$12 -> 1.57 | D153: -0.003185301793 | E153: 1.57001 | F153: -0.003145301993 | G153: 3.999979961 | I153: 3.999979708 | J153: -2.537836861e-07
C154: =C153+Sheet2!B$12 -> 1.6014 | D154: 0.1221091838 | E154: 1.60141 | F154: 0.1221488844 | G154: 3.970056924 | I154: 3.970066694 | J154: 9.769767315e-06
C155: =C154+Sheet2!B$12 -> 1.6328 | D155: 0.2454798842 | E155: 1.63281 | F155: 0.24551866 | G155: 3.8775871 | I155: 3.877606739 | J155: 1.963939994e-05
C156: =C155+Sheet2!B$12 -> 1.6642 | D156: 0.3649831392 | E156: 1.66421 | F156: 0.3650203794 | G156: 3.724027316 | I156: 3.724056515 | J156: 2.919961776e-05
C157: =C156+Sheet2!B$12 -> 1.6956 | D157: 0.478736219 | E157: 1.69561 | F157: 0.4787713369 | G157: 3.51179685 | I157: 3.51183515 | J157: 3.829981193e-05
C158: =C157+Sheet2!B$12 -> 1.727 | D158: 0.5849469856 | E158: 1.72701 | F158: 0.584979428 | G158: 3.244239317 | I158: 3.244286113 | J158: 4.679660081e-05
C159: =C158+Sheet2!B$12 -> 1.7584 | D159: 0.6819421275 | E159: 1.75841 | F159: 0.6819713832 | G159: 2.925569985 | I159: 2.925624541 | J159: 5.455613566e-05
C160: =C159+Sheet2!B$12 -> 1.7898 | D160: 0.7681935219 | E160: 1.78981 | F160: 0.76821913 | G160: 2.560809374 | I160: 2.56087083 | J160: 6.145615686e-05
C161: =C160+Sheet2!B$12 -> 1.8212 | D161: 0.8423423097 | E161: 1.82121 | F161: 0.8423638668 | G161: 2.155704152 | I161: 2.15577154 | J161: 6.738794197e-05
C162: =C161+Sheet2!B$12 -> 1.8526 | D162: 0.9032203041 | E162: 1.85261 | F162: 0.9032374705 | G162: 1.716636604 | I162: 1.716708862 | J162: 7.225807785e-05
C163: =C162+Sheet2!B$12 -> 1.884 | D163: 0.9498683946 | E163: 1.88401 | F163: 0.9498808999 | G163: 1.250524077 | I163: 1.250600067 | J163: 7.598978719e-05
C164: =C163+Sheet2!B$12 -> 1.9154 | D164: 0.9815516577 | E164: 1.91541 | F164: 0.9815593048 | G164: 0.7647100029 | I164: 0.7647885272 | J164: 7.852432319e-05
C165: =C164+Sheet2!B$12 -> 1.9468 | D165: 0.9977709353 | E165: 1.94681 | F165: 0.9977736038 | G165: 0.2668482039 | I165: 0.2669280256 | J165: 7.982174246e-05
C166: =C165+Sheet2!B$12 -> 1.9782 | D166: 0.9982706986 | E166: 1.97821 | F166: 0.9982683464 | G166: -0.2352176905 | I166: -0.2351378289 | J166: 7.986160076e-05
C167: =C166+Sheet2!B$12 -> 2.0096 | D167: 0.9830430739 | E167: 2.00961 | F167: 0.9830357381 | G167: -0.7335778166 | I167: -0.7334991733 | J167: 7.864325832e-05
C168: =C167+Sheet2!B$12 -> 2.041 | D168: 0.952327967 | E168: 2.04101 | F168: 0.9523157632 | G168: -1.220380694 | I168: -1.220304508 | J168: 7.6185924e-05
C169: =C168+Sheet2!B$12 -> 2.0724 | D169: 0.9066092831 | E169: 2.07241 | F169: 0.9065924035 | G169: -1.687956922 | I169: -1.687884394 | J169: 7.252830379e-05
C170: =C169+Sheet2!B$12 -> 2.1038 | D170: 0.8466073031 | E170: 2.10381 | F170: 0.8465860137 | G170: -2.128940009 | I170: -2.128872281 | J170: 6.772803193e-05
C171: =C170+Sheet2!B$12 -> 2.1352 | D171: 0.7732673363 | E171: 2.13521 | F171: 0.7732419725 | G171: -2.536382429 | I171: -2.536320568 | J171: 6.186072716e-05
C172: =C171+Sheet2!B$12 -> 2.1666 | D172: 0.6877448269 | E172: 2.16661 | F172: 0.6877157883 | G172: -2.903865076 | I172: -2.903810057 | J172: 5.501883166e-05
C173: =C172+Sheet2!B$12 -> 2.198 | D173: 0.5913871505 | E173: 2.19801 | F173: 0.5913548946 | G173: -3.225598397 | I173: -3.225551086 | J173: 4.731014364e-05
C174: =C173+Sheet2!B$12 -> 2.2294 | D174: 0.485712387 | E174: 2.22941 | F174: 0.4856774219 | G174: -3.4965136 | I174: -3.496474744 | J174: 3.885607818e-05
C175: =C174+Sheet2!B$12 -> 2.2608 | D175: 0.3723854034 | E175: 2.26081 | F175: 0.37234828 | G175: -3.712342517 | I175: -3.712312727 | J175: 2.978986522e-05
C176: =C175+Sheet2!B$12 -> 2.2922 | D176: 0.2531916246 | E176: 2.29221 | F176: 0.2531529278 | G176: -3.869684842 | I176: -3.869664587 | J176: 2.025432162e-05
C177: =C176+Sheet2!B$12 -> 2.3236 | D177: 0.1300089048 | E177: 2.32361 | F177: 0.1299692442 | G177: -3.966061705 | I177: -3.966051305 | J177: 1.039968112e-05
C178: =C177+Sheet2!B$12 -> 2.355 | D178: 0.00477794259 | E178: 2.35501 | F178: 0.004737943043 | G178: -3.999954723 | I178: -3.999954342 | J178: 3.811949507e-07
C179: =C178+Sheet2!B$12 -> 2.3864 | D179: -0.1205282944 | E179: 2.38641 | F179: -0.1205680027 | G179: -3.970829926 | I179: -3.970839569 | J179: -9.643297136e-06
C180: =C179+Sheet2!B$12 -> 2.4178 | D180: -0.2439356524 | E180: 2.41781 | F180: -0.2439744439 | G180: -3.879146162 | I180: -3.879165678 | J180: -1.951585909e-05
C181: =C180+Sheet2!B$12 -> 2.4492 | D181: -0.3634998939 | E181: 2.44921 | F181: -0.3635371574 | G181: -3.726347877 | I181: -3.726376958 | J181: -2.908096167e-05
C182: =C181+Sheet2!B$12 -> 2.4806 | D182: -0.4773373282 | E182: 2.48061 | F182: -0.4773724766 | G182: -3.514842351 | I182: -3.514880539 | J182: -3.818789882e-05
C183: =C182+Sheet2!B$12 -> 2.512 | D183: -0.5836544883 | E183: 2.51201 | F183: -0.5836869679 | G183: -3.247961775 | I183: -3.248008469 | J183: -4.669320025e-05
C184: =C183+Sheet2!B$12 -> 2.5434 | D184: -0.6807763865 | E184: 2.54341 | F184: -0.6808056856 | G184: -2.929910756 | I184: -2.929965219 | J184: -5.446287726e-05
C185: =C184+Sheet2!B$12 -> 2.5748 | D185: -0.767172903 | E185: 2.57481 | F185: -0.76719856 | G185: -2.56570007 | I185: -2.565761444 | J185: -6.137449491e-05
C186: =C185+Sheet2!B$12 -> 2.6062 | D186: -0.8414828925 | E186: 2.60621 | F186: -0.8415045031 | G186: -2.161067722 | I186: -2.161135041 | J186: -6.731919351e-05
C187: =C186+Sheet2!B$12 -> 2.6376 | D187: -0.9025356282 | E187: 2.63761 | F187: -0.9025528521 | G187: -1.722388547 | I187: -1.72246075 | J187: -7.220329675e-05
C188: =C187+Sheet2!B$12 -> 2.669 | D188: -0.949369247 | E188: 2.66901 | F188: -0.9493818127 | G188: -1.256573773 | I188: -1.256649723 | J188: -7.594986205e-05
C189: =C188+Sheet2!B$12 -> 2.7004 | D189: -0.9812459022 | E189: 2.70041 | F189: -0.9812536118 | G189: -0.7709621418 | I189: -0.7710406417 | J189: -7.84998756e-05
C190: =C189+Sheet2!B$12 -> 2.7318 | D190: -0.9976633889 | E190: 2.73181 | F190: -0.997666121 | G190: -0.2732042851 | I190: -0.2732840982 | J190: -7.981313729e-05
C191: =C190+Sheet2!B$12 -> 2.7632 | D191: -0.9983630557 | E191: 2.76321 | F191: -0.9983607671 | G191: 0.2288578047 | I191: 0.2287779357 | J191: -7.986899285e-05
C192: =C191+Sheet2!B$12 -> 2.7946 | D192: -0.9833338795 | E192: 2.79461 | F192: -0.9833266064 | G192: 0.7273143239 | I192: 0.7272356574 | J192: -7.866651872e-05
C193: =C192+Sheet2!B$12 -> 2.826 | D193: -0.9528126396 | E193: 2.82601 | F193: -0.9528004965 | G193: 1.214312273 | I193: 1.214236049 | J193: -7.622469296e-05
C194: =C193+Sheet2!B$12 -> 2.8574 | D194: -0.9072801867 | E194: 2.85741 | F194: -0.9072633649 | G194: 1.682179179 | I194: 1.682106597 | J194: -7.258196966e-05
C195: =C194+Sheet2!B$12 -> 2.8888 | D195: =SIN(4*x) -> -0.8474538681 | E195: 2.88881 | F195: -0.8474326326 | G195: =(F195-D195)/dxx -> 2.12354397 | I195: 2.123476175 | J195: -6.779575667e-05
C196: =C195+Sheet2!B$12 -> 2.9202 | D196: -0.7742762252 | E196: 2.92021 | F196: -0.7742509107 | G196: 2.531453107 | I196: 2.531391166 | J196: =I196-G196 -> -6.194144683e-05
C197: =C196+Sheet2!B$12 -> 2.9516 | D197: -0.688900145 | E197: 2.95161 | F197: -0.6888711502 | G197: 2.899480131 | I197: 2.899425019 | J197: -5.511125369e-05
C198: =C197+Sheet2!B$12 -> 2.983 | D198: -0.5926706963 | E198: 2.98301 | F198: -0.5926384781 | G198: 3.22182691 | I198: 3.221779498 | J198: -4.741281146e-05
C199: =C198+Sheet2!B$12 -> 3.0144 | D199: -0.4871039387 | E199: 3.01441 | F199: -0.4870690045 | G199: 3.493414992 | I199: 3.493376024 | J199: -3.896740641e-05
C200: =C199+Sheet2!B$12 -> 3.0458 | D200: -0.3738630375 | E200: 3.04581 | F200: -0.3738259379 | G200: 3.709965604 | I200: 3.709935696 | J200: -2.990807873e-05
... 205 more rows

Sheet Defining Function
A1: Defining a Function in Excel
A3: Computers have very specific rules you must follow when defining a function. If you don't, the program will either not work at all or will work incorrectly.
A5: 1. The Variable used should be the one named in the instruction, usually x, though sometimes y, t, Q (for an angle theta),
A6: or even x and y (for a function of two variables).
A8: 2. Order of Operations: There five arithmetic operations, addition (+), subtraction (-), multiplication (*), division (/), and exponentiation or power (^). When computers see any of these operation symbols, they perform the indicated steps in a very particular order. First, the power is done. Second, products and quotients of adjacent terms is done. Third, and last, sums and differences of adjacent terms are done. So, in 10*x^3 + 5*x – 7, say with x = 2, the first pass only calculates 2^3 and ignores the multiplications and the sums and differences to calculate 2^3 = 8. The second pass looks at 10*8 + 5*2 – 7 and only does the multiplications, so it produces 80 + 10 - 7. The third pass looks at the +’s and –‘s to produce 80 + 10 – 7 = 83.
A10: 3. Parentheses If you need an operation involving more than two adjacent terms, as in Ö4^3 + 6^2, the computer would take the square root of 4 to produce 2^3 + 6^2; it would then cube the 2 and square the 6 to produce 8 + 36; and finally it would add the 8 and the 36 to get 44. If you actually wanted the square root of the entire expression, you would need to use parentheses, as in Ö(4^3 + 6^2) to tell the computer to do all the operations inside the parentheses before taking the square root. Therefore, it would calculate (4^3 + 6^2) = 64 + 36 = 100 and then take the square root of Ö100 = 10.
A12: 4. Built-In Functions Computer programs have built-in functions for most common algebraic functions. In Excel, the square root function is denoted by SQRT(…), so SQRT(100) = 10. Alternatively, you could enter it as 100^.5 or 100^(1/2); notice that parentheses are needed to have the ½ done first. The common trig functions are SIN (…), COS (…), and TAN (…), where the arguments are automatically interpreted as being in radians, not degrees. The logarithm to the base 10 is represented by LOG (…) and the logarithm with the base e, known as the natural logarithm, is LN (…). The corresponding exponential function with base e is EXP (x). If x is the variable, then each of these would be SQRT (x), SIN (x), COS (x), TAN (x), LOG (x) (for log with base 10 ), LN (x) (for log with base e ), and EXP (x).

Sheet Sheet3
